bitfinex/quotes_SOLUSD_20240606
["timestamp","ask_amount","ask_price","bid_price","bid_amount"]
[1717681906709,5.79,172.89,172.85,20.0]
[1717681906879,5.79,172.9,172.86,120.0]
[1717681907281,5.96,172.89,172.86,120.0]
[1717681907477,0.17,172.89,172.86,120.0]
[1717681907984,5.79,172.9,172.86,120.0]
[1717681908391,5.79,172.89,172.86,120.0]
[1717681908900,2.4798,172.91,172.84,120.0]
[1717681909106,5.79,172.88,172.84,120.0]
[1717681909484,5.96,172.89,172.84,120.0]
[1717681909699,0.17,172.88,172.84,120.0]
[1717681910999,5.79,172.87,172.79,120.0]
[1717681911179,5.79,172.84,172.79,120.0]
[1717681912998,0.34,172.86,172.81,120.0]
[1717681912999,5.79,172.85,172.81,120.0]
[1717681913197,0.34,172.84,172.81,120.0]
[1717681914091,0.17,172.84,172.81,120.0]
[1717681914290,5.79,172.86,172.81,120.0]
[1717681914602,0.34,172.85,172.81,120.0]
[1717681918389,6.13,172.85,172.81,120.0]
[1717681918797,5.79,172.84,172.81,120.0]
[1717681921010,0.34,172.85,172.79,120.0]
[1717681921217,5.79,172.83,172.79,120.0]
[1717681921407,0.34,172.85,172.81,120.0]
[1717681921795,6.13,172.85,172.81,120.0]
[1717681922397,0.34,172.85,172.81,120.0]
[1717681922619,0.17,172.85,172.81,120.0]
[1717681923325,2.1401,172.89,172.84,120.0]
[1717681923497,5.79,172.88,172.84,120.0]
[1717681923921,5.79,172.87,172.84,120.0]
[1717681924215,5.79,172.86,172.82,120.0]
[1717681927496,0.17,172.87,172.82,120.0]
[1717681927701,0.17,172.87,172.84,120.0]
[1717681927902,2.1398,172.91,172.84,120.0]
[1717681928222,5.79,172.88,172.84,120.0]
[1717681928424,8.7767,172.92,172.86,120.0]
[1717681928623,5.79,172.89,172.86,120.0]
[1717681929607,6.637,172.92,172.86,120.0]
[1717681929822,5.79,172.9,172.86,120.0]
[1717681930846,5.79,172.89,172.86,120.0]
[1717681931221,5.79,172.88,172.86,120.0]
[1717681931543,5.79,172.89,172.86,120.0]
[1717681932344,5.79,172.88,172.86,120.0]
[1717681932911,5.79,172.88,172.84,120.0]
[1717681933131,5.79,172.86,172.84,120.0]
[1717681934420,5.79,172.87,172.84,120.0]
[1717681936433,41.337,172.92,172.82,120.0]
[1717681936434,5.79,172.85,172.82,120.0]
[1717681936638,5.79,172.86,172.82,120.0]
[1717681937020,5.79,172.85,172.82,120.0]
[1717681937220,5.79,172.84,172.81,120.0]
[1717681937434,5.79,172.83,172.79,120.0]
[1717681938444,5.79,172.82,172.79,120.0]
[1717681938818,5.79,172.83,172.81,120.0]
[1717681939343,0.34,172.86,172.75,6.547]
[1717681939344,0.34,172.86,172.83,120.0]
[1717681939521,45.34,172.87,172.83,120.0]
[1717681939721,5.79,172.86,172.83,120.0]
[1717681940962,5.79,172.85,172.81,120.0]
[1717681942029,45.34,172.87,172.81,120.0]
[1717681942339,5.79,172.86,172.81,120.0]
[1717681942913,0.34,172.87,172.83,120.0]
[1717681943216,6.2235,172.89,172.83,120.0]
[1717681943217,2.1401,172.89,172.83,120.0]
[1717681943420,2.1398,172.91,172.85,120.0]
[1717681943643,5.79,172.89,172.85,120.0]
[1717681944830,5.79,172.88,172.85,120.0]
[1717681945432,5.79,172.89,172.85,120.0]
[1717681945833,5.79,172.88,172.85,120.0]
[1717681946029,5.79,172.87,172.85,120.0]
[1717681946829,5.79,172.87,172.83,120.0]
[1717681947030,5.79,172.86,172.83,120.0]
[1717681949823,5.79,172.87,172.83,120.0]
[1717681951356,0.17,172.88,172.83,120.0]
[1717681951524,5.79,172.87,172.83,120.0]
[1717681954132,5.96,172.88,172.85,120.0]
[1717681954333,5.79,172.89,172.85,120.0]
[1717681954529,5.79,172.88,172.85,120.0]
[1717681955243,0.34,172.9,172.85,120.0]
[1717681955458,0.34,172.9,172.88,120.0]
[1717681955644,5.79,172.9,172.88,120.0]
[1717681956030,6.13,172.91,172.88,120.0]
[1717681956229,5.79,172.92,172.88,120.0]
[1717681958943,5.79,172.92,172.9,120.0]
[1717681959457,5.79,172.91,172.9,120.0]
[1717681959641,5.79,172.91,172.88,120.0]
[1717681960547,5.79,172.9,172.88,120.0]
[1717681963481,2.1401,172.89,172.81,120.0]
[1717681963759,5.79,172.83,172.81,120.0]
[1717681965458,5.79,172.82,172.81,120.0]
[1717681967060,0.34,172.88,172.81,120.0]
[1717681967242,5.79,172.85,172.83,120.0]
[1717681968148,2.1402,172.88,172.83,120.0]
[1717681968348,5.79,172.86,172.83,120.0]
[1717681969049,5.79,172.85,172.83,120.0]
[1717681969268,5.79,172.86,172.83,120.0]
[1717681969464,2.1402,172.88,172.83,120.0]
[1717681969657,2.1402,172.88,172.85,120.0]
[1717681969850,5.79,172.87,172.85,120.0]
[1717681971458,5.79,172.86,172.85,120.0]
[1717681972357,5.79,172.86,172.83,120.0]
[1717681972552,2.1402,172.88,172.83,120.0]
[1717681972772,5.79,172.85,172.83,120.0]
[1717681976568,5.79,172.84,172.83,120.0]
[1717681977071,5.79,172.84,172.81,120.0]
[1717681977273,5.79,172.83,172.81,120.0]
[1717681977968,2.1403,172.87,172.81,120.0]
[1717681978266,5.79,172.83,172.81,120.0]
[1717681980873,5.79,172.82,172.81,120.0]
[1717681981048,5.79,172.82,172.79,120.0]
[1717681981254,5.79,172.8,172.79,120.0]
[1717681981764,5.79,172.8,172.78,120.0]
[1717681981972,2.1407,172.84,172.78,120.0]
[1717681982174,5.79,172.79,172.78,120.0]
[1717681982684,0.34,172.83,172.78,120.0]
[1717681982854,5.79,172.81,172.78,120.0]
[1717681983054,5.79,172.8,172.78,120.0]
[1717681985684,5.79,172.79,172.78,120.0]
[1717681987393,0.34,172.83,172.78,120.0]
[1717681987567,5.79,172.8,172.78,120.0]
[1717681990787,0.34,172.83,172.78,120.0]
[1717681990982,5.79,172.8,172.78,120.0]
[1717681992587,5.79,172.79,172.78,120.0]
[1717681993082,5.79,172.8,172.78,120.0]
[1717681994892,0.34,172.83,172.78,120.0]
[1717681995079,5.79,172.81,172.78,120.0]
[1717681997095,5.79,172.8,172.78,120.0]
[1717681999094,5.79,172.82,172.78,120.0]
[1717681999597,5.79,172.81,172.78,120.0]
[1717681999784,5.79,172.8,172.78,120.0]
[1717682000595,5.79,172.79,172.76,120.0]
[1717682001095,5.79,172.8,172.76,120.0]
[1717682001293,5.79,172.79,172.78,2.1413]
[1717682003807,2.141,172.82,172.78,2.1413]
[1717682003979,5.79,172.79,172.78,2.1413]
[1717682005729,0.34,172.81,172.79,2.1413]
[1717682006041,0.17,172.81,172.79,120.0]
[1717682006200,5.96,172.82,172.79,122.1412]
[1717682006531,6.13,172.82,172.79,122.1412]
[1717682007225,5.79,172.81,172.79,122.1412]
[1717682007996,6.0833,172.85,172.79,120.0]
[1717682008191,2.1405,172.86,172.79,120.0]
[1717682008390,5.79,172.84,172.79,120.0]
[1717682009309,2.1405,172.86,172.81,120.0]
[1717682009525,5.79,172.84,172.81,120.0]
[1717682010120,2.1403,172.87,172.83,120.0]
[1717682010423,5.79,172.87,172.85,120.0]
[1717682010801,5.79,172.88,172.85,120.0]
[1717682012701,5.79,172.87,172.85,120.0]
[1717682016039,5.79,172.86,172.85,120.0]
[1717682019212,2.1401,172.89,172.85,120.0]
[1717682019513,5.79,172.86,172.85,120.0]
[1717682019958,5.79,172.87,172.85,120.0]
[1717682020941,0.17,172.88,172.85,120.0]
[1717682021229,5.79,172.88,172.85,120.0]
[1717682022222,5.79,172.87,172.85,120.0]
[1717682024427,43.2584,172.93,172.87,120.0]
[1717682024743,2.1398,172.91,172.87,120.0]
[1717682024911,5.79,172.9,172.87,120.0]
[1717682025313,2.1398,172.91,172.85,120.0]
[1717682025314,5.79,172.88,172.85,120.0]
[1717682025920,5.79,172.87,172.85,120.0]
[1717682026730,5.79,172.88,172.85,120.0]
[1717682030134,5.79,172.87,172.85,120.0]
[1717682030532,2.1399,172.91,172.87,120.0]
[1717682030730,5.79,172.88,172.87,120.0]
[1717682030926,5.79,172.89,172.87,120.0]
[1717682031429,5.79,172.88,172.87,120.0]
[1717682033828,5.79,172.88,172.85,120.0]
[1717682035038,5.79,172.86,172.85,120.0]
[1717682035235,2.4797,172.92,172.85,120.0]
[1717682035449,5.79,172.87,172.85,120.0]
[1717682035737,5.79,172.86,172.85,120.0]
[1717682036115,5.79,172.86,172.83,120.0]
[1717682036434,5.79,172.85,172.83,120.0]
[1717682037311,5.79,172.84,172.78,6.4079]
[1717682037516,5.79,172.84,172.81,120.0]
[1717682038418,5.79,172.85,172.81,120.0]
[1717682039029,5.79,172.86,172.83,120.0]
[1717682039341,2.14,172.9,172.83,120.0]
[1717682039527,5.79,172.87,172.83,120.0]
[1717682040437,5.79,172.86,172.83,120.0]
[1717682040743,5.79,172.87,172.83,120.0]
[1717682041238,0.34,172.89,172.85,120.0]
[1717682041441,5.79,172.88,172.85,120.0]
[1717682041642,6.13,172.89,172.85,120.0]
[1717682041958,0.34,172.89,172.85,120.0]
[1717682042128,5.79,172.87,172.85,120.0]
[1717682042835,5.79,172.86,172.83,120.0]
[1717682044442,2.3101,172.89,172.83,120.0]
[1717682044443,5.79,172.85,172.83,120.0]
[1717682044943,5.79,172.85,172.81,120.0]
[1717682045528,5.79,172.85,172.83,120.0]
[1717682045929,5.79,172.86,172.83,120.0]
[1717682046151,5.79,172.86,172.81,120.0]
[1717682046544,5.79,172.86,172.83,120.0]
[1717682047347,5.79,172.85,172.83,120.0]
[1717682048049,5.79,172.84,172.81,120.0]
[1717682048227,5.79,172.83,172.79,120.0]
[1717682048434,5.79,172.83,172.8,20.0]
[1717682048634,5.79,172.82,172.8,20.0]
[1717682049550,5.79,172.81,172.79,120.0]
[1717682049949,5.79,172.82,172.79,120.0]
[1717682050151,5.79,172.81,172.77,120.0]
[1717682051554,5.79,172.8,172.76,120.0]
[1717682051755,5.79,172.79,172.77,20.0]
[1717682051941,5.79,172.8,172.77,20.0]
[1717682052257,5.79,172.79,172.76,20.0]
[1717682052655,5.79,172.79,172.75,120.0]
[1717682053956,5.79,172.79,172.78,2.1414]
[1717682056475,6.13,172.79,172.78,2.1414]
[1717682059446,12.251,172.79,172.76,2.1416]
[1717682059653,0.34,172.78,172.76,2.1416]
[1717682059860,5.79,172.77,172.76,2.1416]
[1717682060154,5.79,172.77,172.73,120.0]
[1717682060155,5.96,172.77,172.75,2.1417]
[1717682060456,6.13,172.76,172.75,2.1417]
[1717682064548,0.34,172.76,172.75,2.1417]
[1717682064759,6.13,172.76,172.75,2.1417]
[1717682067468,5.79,172.78,172.75,120.0]
[1717682067685,2.1411,172.81,172.77,2.1415]
[1717682067971,5.79,172.8,172.77,122.1415]
[1717682068147,5.79,172.79,172.77,122.1415]
[1717682069548,5.79,172.8,172.77,122.1415]
[1717682073589,5.79,172.79,172.77,122.1415]
[1717682074568,5.79,172.79,172.77,2.1415]
[1717682077049,7.9312,172.8,172.77,122.1415]
[1717682078568,7.9312,172.8,172.78,2.31483256]
[1717682080079,5.79,172.8,172.78,2.31483256]
[1717682080257,2.1409,172.82,172.78,4.45623256]
[1717682080565,7.9309,172.82,172.78,4.45623256]
[1717682081472,5.79,172.82,172.8,2.1412]
[1717682083975,4.2808,172.87,172.81,122.141]
[1717682084159,5.79,172.84,172.81,122.141]
[1717682085058,5.79,172.83,172.81,122.141]
[1717682085258,5.79,172.82,172.81,2.141]
[1717682088059,2.1406,172.85,172.81,2.141]
[1717682088377,5.79,172.82,172.81,2.141]
[1717682095864,0.34,172.84,172.81,2.141]
[1717682096069,5.79,172.83,172.81,2.141]
[1717682097293,2.1405,172.86,172.82,2.1409]
[1717682097493,2.1405,172.86,172.82,4.45532275]
[1717682097707,5.79,172.86,172.83,2.1408]
[1717682097886,5.79,172.86,172.83,122.1408]
[1717682098272,5.79,172.85,172.83,2.1408]
[1717682098883,5.79,172.84,172.81,120.0]
[1717682099087,5.79,172.83,172.79,120.0]
[1717682101498,5.79,172.8,172.76,120.0]
[1717682101689,5.96,172.79,172.74,120.0]
[1717682101877,5.79,172.78,172.74,120.0]
[1717682102204,5.96,172.79,172.76,120.0]
[1717682102378,5.79,172.79,172.76,120.0]
[1717682102899,5.79,172.8,172.76,120.0]
[1717682103394,12.7775,172.86,172.76,120.0]
[1717682103395,2.1407,172.84,172.79,2.1413]
[1717682103601,5.79,172.84,172.8,2.1411]
[1717682103982,5.79,172.83,172.8,2.1411]
[1717682104593,5.79,172.82,172.8,2.1411]
[1717682105501,5.79,172.81,172.79,2.1412]
[1717682105678,5.79,172.8,172.79,2.1412]
[1717682106001,6.13,172.8,172.78,2.1414]
[1717682106899,0.17,172.8,172.79,2.1413]
[1717682107100,5.79,172.81,172.79,2.1413]
[1717682108200,0.34,172.82,172.79,2.1413]
[1717682108378,0.34,172.82,172.8,2.1411]
[1717682108587,2.1407,172.84,172.8,122.1411]
[1717682108803,10.7011,172.88,172.81,2.141]
[1717682109099,5.79,172.85,172.82,122.1409]
[1717682110893,5.79,172.84,172.82,2.1409]
[1717682111501,5.79,172.85,172.82,2.1409]
[1717682112596,2.4804,172.86,172.82,2.1409]
[1717682112801,0.17,172.85,172.82,2.1409]
[1717682113003,5.96,172.85,172.82,2.1409]
[1717682114603,5.96,172.85,172.82,122.1409]
[1717682114899,0.17,172.86,172.82,120.0]
[1717682115080,0.17,172.87,172.84,120.0]
[1717682115291,5.79,172.88,172.84,120.0]
[1717682115590,2.1399,172.9,172.84,120.0]
[1717682115797,5.79,172.89,172.84,120.0]
[1717682116583,5.79,172.89,172.86,120.0]
[1717682117415,8.0999,172.9,172.86,120.0]
[1717682117605,0.17,172.89,172.86,120.0]
[1717682118000,0.34,172.89,172.86,120.0]
[1717682118194,7.9299,172.9,172.86,120.0]
[1717682118607,5.79,172.9,172.86,120.0]
[1717682122411,5.79,172.89,172.86,120.0]
[1717682125330,2.4798,172.91,172.86,120.0]
[1717682125511,5.79,172.88,172.86,120.0]
[1717682126324,5.79,172.89,172.86,120.0]
[1717682126525,5.79,172.89,172.82,12.036]
[1717682126526,5.79,172.88,172.84,120.0]
[1717682127825,5.79,172.87,172.84,120.0]
[1717682128404,5.79,172.86,172.82,120.0]
[1717682128633,0.34,172.89,172.84,120.0]
[1717682128634,5.79,172.88,172.84,120.0]
[1717682128918,0.17,172.87,172.84,120.0]
[1717682131918,0.17,172.87,172.85,1.98044402]
[1717682132119,0.17,172.87,172.84,120.0]
[1717682133230,0.17,172.89,172.84,120.0]
[1717682133406,5.79,172.89,172.86,120.0]
[1717682133610,6.13,172.9,172.86,120.0]
[1717682134122,0.34,172.9,172.86,120.0]
[1717682134322,6.13,172.9,172.86,120.0]
[1717682134713,0.34,172.9,172.86,120.0]
[1717682137530,5.79,172.91,172.86,120.0]
[1717682139033,5.79,172.9,172.86,120.0]
[1717682139419,5.79,172.89,172.86,120.0]
[1717682140713,5.79,172.89,172.84,120.0]
[1717682141832,0.34,172.88,172.82,120.0]
[1717682142035,5.79,172.86,172.82,120.0]
[1717682142234,0.34,172.85,172.82,120.0]
[1717682143139,6.13,172.85,172.82,120.0]
[1717682144616,0.34,172.85,172.82,120.0]
[1717682144939,5.79,172.88,172.82,120.0]
[1717682145115,6.13,172.87,172.82,120.0]
[1717682145633,0.34,172.87,172.83,1.93300635]
[1717682147721,6.13,172.87,172.83,1.93300635]
[1717682148648,0.34,172.87,172.84,120.0]
[1717682148831,6.13,172.88,172.84,120.0]
[1717682149630,5.79,172.87,172.84,120.0]
[1717682150145,5.79,172.88,172.84,120.0]
[1717682150650,7.9301,172.89,172.84,120.0]
[1717682150828,2.1401,172.89,172.84,120.0]
[1717682151022,7.9301,172.89,172.84,120.0]
[1717682151935,0.34,172.9,172.86,120.0]
[1717682151936,2.48,172.9,172.86,120.0]
[1717682152143,8.27,172.9,172.86,120.0]
[1717682158055,2.48,172.9,172.86,120.0]
[1717682159748,7.9299,172.91,172.86,120.0]
[1717682160555,5.79,172.9,172.86,120.0]
[1717682162133,5.79,172.89,172.86,120.0]
[1717682162335,5.79,172.89,172.84,120.0]
[1717682162536,5.79,172.88,172.84,120.0]
[1717682163240,5.79,172.89,172.84,120.0]
[1717682168645,0.34,172.9,172.84,120.0]
[1717682168830,6.13,172.89,172.84,120.0]
[1717682169032,0.34,172.89,172.86,120.0]
[1717682169232,0.17,172.89,172.86,120.0]
[1717682171632,5.96,172.9,172.86,120.0]
[1717682172455,0.17,172.9,172.86,120.0]
[1717682172654,0.34,172.9,172.86,120.0]
[1717682173058,6.13,172.9,172.86,120.0]
[1717682175066,0.34,172.9,172.86,120.0]
[1717682176242,6.13,172.9,172.86,120.0]
[1717682178756,0.34,172.9,172.86,120.0]
[1717682178961,6.13,172.9,172.86,120.0]
[1717682179747,2.1399,172.91,172.86,120.0]
[1717682179748,7.9299,172.91,172.86,120.0]
[1717682180152,2.1399,172.91,172.86,120.0]
[1717682180352,7.9299,172.91,172.86,120.0]
[1717682180560,2.1399,172.91,172.86,120.0]
[1717682180750,7.9299,172.91,172.86,120.0]
[1717682180957,2.4797,172.92,172.88,120.0]
[1717682181206,43.2653,173.0,172.88,120.0]
[1717682181476,5.79,172.98,172.92,120.0]
[1717682181973,5.79,172.98,172.94,120.0]
[1717682182265,5.79,172.98,172.95,0.62695826]
[1717682182466,2.1387,173.0,172.95,0.62695826]
[1717682182766,5.79,172.99,172.95,0.62695826]
[1717682183152,7.9287,173.0,172.95,1.92304006]
[1717682183354,5.79,172.99,172.95,1.92304006]
[1717682183558,2.1387,173.0,172.95,1.92304006]
[1717682183863,0.17,172.99,172.95,1.92304006]
[1717682184369,5.96,172.99,172.95,1.92304006]
[1717682185679,0.17,172.99,172.95,1.92304006]
[1717682185881,0.17,173.0,172.96,1.92292888]
[1717682186082,5.79,173.02,172.97,120.0]
[1717682186388,2.1384,173.03,172.98,1.92270655]
[1717682186569,5.79,173.02,172.98,1.92270655]
[1717682186774,7.9284,173.03,172.98,1.92270655]
[1717682186973,5.79,173.02,172.98,1.92270655]
[1717682187182,2.1384,173.03,172.98,1.92270655]
[1717682187488,5.79,173.02,172.98,1.92270655]
[1717682187866,5.79,173.01,172.98,1.92270655]
[1717682190695,5.79,173.01,172.98,2.31199742]
[1717682192284,0.34,173.03,172.98,2.31199742]
[1717682192478,5.79,173.01,172.98,2.31199742]
[1717682193000,0.34,173.03,172.98,2.31199742]
[1717682193178,6.13,173.02,172.99,2.31186377]
[1717682194210,6.13,173.02,172.98,2.31194748]
[1717682194874,5.79,173.01,172.98,2.31194748]
[1717682195198,5.79,173.01,172.97,120.0]
[1717682195892,5.79,172.98,172.93,120.0]
[1717682196214,0.17,173.0,172.93,120.0]
[1717682196215,5.79,172.96,172.93,120.0]
[1717682196396,6.13,172.97,172.93,120.0]
[1717682196592,2.1386,173.01,172.95,120.0]
[1717682196785,5.79,172.98,172.95,120.0]
[1717682197400,5.79,172.99,172.95,120.0]
[1717682197995,5.79,172.98,172.95,120.0]
[1717682200077,0.34,173.0,172.95,120.0]
[1717682200298,5.79,172.98,172.95,120.0]
[1717682200806,0.34,173.0,172.95,120.0]
[1717682200990,5.79,172.98,172.95,120.0]
[1717682201203,36.8484,173.03,172.97,120.0]
[1717682201500,2.1384,173.03,172.97,120.0]
[1717682201674,5.79,173.01,172.97,120.0]
[1717682202073,2.1384,173.03,172.97,126.4377]
[1717682202281,7.9284,173.03,172.97,126.4377]
[1717682202488,7.9284,173.03,172.97,132.2277]
[1717682202685,0.34,173.02,172.97,132.2277]
[1717682203609,7.9283,173.04,172.99,120.0]
[1717682204296,38.9853,173.09,173.02,120.0]
[1717682204506,5.79,173.06,173.02,120.0]
[1717682204804,5.79,173.05,173.0,120.0]
[1717682204974,2.1379,173.07,173.0,120.0]
[1717682204975,5.79,173.04,173.0,120.0]
[1717682205991,25.2979,173.07,172.98,120.0]
[1717682206181,2.478,173.06,172.99,20.0]
[1717682207304,38.26783552,173.05,172.96,120.0]
[1717682207601,5.79,173.0,172.95,120.0]
[1717682208782,5.79,173.01,172.97,120.0]
[1717682209310,5.79,173.01,172.96,120.0]
[1717682210181,5.79,173.0,172.96,120.0]
[1717682210381,5.79,173.0,172.95,120.0]
[1717682210680,5.79,173.0,172.96,140.0]
[1717682211010,5.79,173.0,172.96,20.0]
[1717682211301,5.79,173.0,172.97,120.0]
[1717682211697,5.79,172.98,172.95,120.0]
[1717682211914,5.79,172.97,172.95,120.0]
[1717682212202,5.79,172.98,172.95,120.0]
[1717682213189,5.79,172.97,172.95,120.0]
[1717682214098,5.79,172.97,172.93,120.0]
[1717682214311,5.79,172.97,172.94,20.0]
[1717682214975,0.34,172.99,172.94,20.0]
[1717682215181,5.96,172.98,172.94,20.0]
[1717682215514,5.79,172.98,172.94,20.0]
[1717682216004,0.34,173.0,172.95,120.0]
[1717682216385,6.13,173.0,172.95,120.0]
[1717682216594,5.79,172.99,172.95,120.0]
[1717682217404,6.13,173.0,172.95,120.0]
[1717682217599,5.79,172.99,172.95,120.0]
[1717682217995,0.34,173.0,172.94,20.0]
[1717682218197,5.79,172.96,172.93,120.0]
[1717682218692,5.79,172.97,172.93,120.0]
[1717682218893,0.34,172.96,172.89,120.0]
[1717682220296,5.79,172.95,172.91,120.0]
[1717682221110,6.13,172.96,172.91,120.0]
[1717682221495,5.79,172.95,172.91,120.0]
[1717682222207,5.79,172.94,172.91,120.0]
[1717682222800,5.79,172.94,172.9,20.0]
[1717682224018,5.79,172.92,172.89,120.0]
[1717682224709,5.96,172.91,172.87,120.0]
[1717682224891,5.79,172.91,172.87,120.0]
[1717682225288,5.79,172.89,172.87,120.0]
[1717682225495,5.79,172.88,172.83,120.0]
[1717682225697,5.79,172.86,172.83,120.0]
[1717682226114,5.79,172.87,172.83,120.0]
[1717682226597,5.79,172.86,172.83,120.0]
[1717682227210,5.79,172.86,172.84,120.0]
[1717682227416,5.79,172.87,172.84,120.0]
[1717682227728,5.79,172.87,172.82,120.0]
[1717682229408,5.79,172.87,172.84,120.0]
[1717682230302,5.96,172.89,172.84,120.0]
[1717682230500,0.17,172.88,172.84,120.0]
[1717682231422,5.96,172.88,172.84,120.0]
[1717682233419,0.17,172.88,172.84,120.0]
[1717682233607,6.13,172.89,172.84,120.0]
[1717682234900,5.79,172.87,172.84,120.0]
[1717682235406,5.79,172.86,172.81,120.0]
[1717682235597,5.79,172.86,172.83,120.0]
[1717682236300,5.79,172.86,172.81,120.0]
[1717682236619,5.79,172.86,172.82,20.0]
[1717682237221,5.79,172.86,172.81,120.0]
[1717682238515,5.79,172.85,172.81,120.0]
[1717682239026,5.79,172.86,172.81,120.0]
[1717682239500,0.34,172.87,172.83,120.0]
[1717682239700,5.79,172.86,172.83,120.0]
[1717682241528,5.79,172.86,172.79,5.79]
[1717682241827,5.79,172.86,172.82,120.0]
[1717682243312,5.79,172.87,172.82,120.0]
[1717682244332,0.34,172.88,172.82,120.0]
[1717682244508,5.79,172.87,172.82,120.0]
[1717682244827,5.79,172.87,172.84,120.0]
[1717682246727,0.34,172.88,172.85,1.14413802]
[1717682247918,0.17,172.88,172.85,1.14413802]
[1717682248433,0.34,172.89,172.85,1.14413802]
[1717682249003,6.13,172.89,172.85,1.14413802]
[1717682249829,8.6365,172.91,172.86,120.0]
[1717682250132,6.13,172.9,172.87,1.14411141]
[1717682250513,6.13,172.9,172.86,120.0]
[1717682251025,5.79,172.89,172.86,120.0]
[1717682251529,6.13,172.9,172.86,120.0]
[1717682251839,0.34,172.9,172.86,120.0]
[1717682252018,6.13,172.9,172.86,120.0]
[1717682252612,0.34,172.9,172.86,120.0]
[1717682252815,2.1397,172.92,172.88,120.0]
[1717682253138,5.79,172.91,172.88,120.0]
[1717682253715,2.1393,172.95,172.91,120.0]
[1717682254013,6.1001,173.0,172.91,120.0]
[1717682254014,5.79,172.96,172.91,120.0]
[1717682254514,7.9291,172.97,172.91,120.0]
[1717682255130,38.9878,172.99,172.93,120.0]
[1717682255131,2.1389,172.99,172.93,120.0]
[1717682255356,5.79,172.98,172.93,120.0]
[1717682255842,5.79,172.96,172.91,120.0]
[1717682256015,5.79,172.96,172.92,20.0]
[1717682256613,5.79,172.95,172.91,120.0]
[1717682256837,5.79,172.95,172.92,20.0]
[1717682257415,5.79,172.94,172.89,120.0]
[1717682257634,5.79,172.92,172.89,120.0]